Cogmind - Beta 14 @@@ ROGUE MODE // 2024.11.16 @ 07:24:12 Player: Arzon Result: Destroyed by G-34 Mercenary with Small Laser Performance ------------- Evolutions (0) 0 Regions Visited (4) 800 Robots Destroyed (10) 50 Value Destroyed (284) 284 Prototype IDs (23) 460 Alien Tech Used (0) 0 Bonus (267) 267 TOTAL SCORE: 1861 Bonus ------- Aligned with FarCom 300 Friendly Fire -33 Cogmind --------- Core Integrity 0/250 Matter 285/300 Energy 100/100 System Corruption 2% Temperature Cool (34) Movement Walking (90) Location -9/Mines Parts ------- > --- POWER (1) -------- (None) > --- PROPULSION (2) --- Potential Leg Potential Leg > --- UTILITY (2) ------ Medium Storage Unit Signal Interpreter > --- WEAPON (2) ------- Light Assault Rifle > --- INVENTORY (10) --- Light Ion Engine Compact Wheel Improved Heat Sink Small Laser Small Laser Small Laser Small Laser Small Laser Light Assault Rifle Light Assault Rifle Peak State ------------ > --- POWER ------------ (None) > --- PROPULSION ------- Potential Leg Potential Leg > --- UTILITY ---------- Medium Storage Unit Signal Interpreter > --- WEAPON ----------- Light Assault Rifle Light Assault Rifle > --- INVENTORY -------- Light Ion Engine Aluminum Leg Compact Wheel Improved Heat Sink Small Laser Small Laser Small Laser Small Laser Light Assault Rifle Light Assault Rifle [Rating: 25] Favorites ----------- Power Light Ion Engine Engine Light Ion Engine Propulsion Aluminum Leg Leg Aluminum Leg Wheel Wheel Utility Medium Storage Unit Device Heat Sink Storage Medium Storage Unit Processor Signal Interpreter Weapon Small Laser Energy Gun Small Laser Ballistic Gun Light Assault Rifle Build | -11 -10 -10 -10 -9 ------- Run | Yrd Mat Min Exi Min Slots Evolved . | . . . . . Power . | . . . . . Propulsion . | . . . . . Utility . | . . . . . Weapon . | . . . . . Parts Attached 18 | 6 8 2 2 . Power 2 | 1 1 . . . Engine 2 | 1 1 . . . Core . | . . . . . Reactor . | . . . . . Propulsion 6 | 2 2 . 2 . Treads . | . . . . . Leg 4 | . 2 . 2 . Wheel 2 | 2 . . . . Hover . | . . . . . Flight . | . . . . . Utility 3 | 1 2 . . . Device 1 | 1 . . . . Storage 1 | . 1 . . . Processor 1 | . 1 . . . Hackware . | . . . . . Protection . | . . . . . Artifact . | . . . . . Weapon 7 | 2 3 2 . . Energy Gun 3 | . 3 . . . Energy Cannon . | . . . . . Ballistic Gun 4 | 2 . 2 . . Ballistic Cannon . | . . . . . Launcher . | . . . . . Special Weapon . | . . . . . Impact Weapon . | . . . . . Slashing Weapon . | . . . . . Piercing Weapon . | . . . . . Special Melee Weapon . | . . . . . Unidentified Prototypes . | . . . . . Parts Lost 2 | . 2 . . . Power 1 | . 1 . . . Propulsion 1 | . 1 . . . Utility . | . . . . . Weapon . | . . . . . Highest Loss Streak 1 | . 1 . . . To Critical Strikes . | . . . . . Average Slot Usage (%) 88 | . 91 85 85 83 Engine 4 | . 7 . . . Leg 24 | . 21 28 28 28 Wheel 3 | . 5 . . . Storage 13 | . 13 14 14 14 Processor 13 | . 12 14 14 14 Energy Gun 13 | . 22 5 . . Ballistic Gun 14 | . 5 22 28 26 Peak Build Rating 25 | 6 7 7 25 25 Average Rating 9 | 3 6 6 13 24 On Entrance 8 | . 6 6 7 25 Naked Turns . | . . . . . Heaviest Build 17 | 7 17 12 12 12 Greatest Support 60 | 20 20 20 60 60 Greatest Overweight (x) 1 | . 1 . . . Average Overweight (x) . | . . . . . Largest Inventory Capacity 10 | 5 10 10 10 10 Average Capacity 9 | 5 9 10 10 10 Most Carried 10 | 3 7 10 10 10 Average Carried 5 | 1 3 8 9 10 Final Capacity 10 | 5 10 10 10 10 Final Carried 10 | 2 7 10 10 10 Class Distribution -------------------- 66% | Scavenger-Mutant 33% | Mutant Dominant Class ---------------- Scavenger-Mutant | -10/Materials Scavenger-Mutant | -10/Mines Scavenger-Mutant | -10/Exiles Mutant | -9/Mines Resources | -11 -10 -10 -10 -9 ----------- Run | Yrd Mat Min Exi Min Matter Collected 553 | 270 185 44 . 54 Remotely . | . . . . . Salvage Created 449 | 41 393 . . 15 Parts 26 | 2 24 . . . Haulers Intercepted 2 | . 2 . . . Recyclers Shooed 1 | . 1 . . . Parts Field Recycled . | . . . . . Retrieved Matter . | . . . . . Parts Self-Destructed . | . . . . . Prevented . | . . . . . Kills | -11 -10 -10 -10 -9 ------- Run | Yrd Mat Min Exi Min Combat Hostiles Destroyed 8 | 1 6 . . 1 Guns 8 | 1 6 . . 1 Classes Destroyed 4 | 1 2 . . 1 Hauler 2 | . 2 . . . Watcher 1 | . 1 . . . Grunt 7 | 1 6 . . . Assembled 1 | . . . . 1 Best Kill Streak 2 | 1 2 . . 1 Combat Bots Only 2 | 1 2 . . 1 Max Kills in Single Turn 1 | 1 1 . . 1 Gunslinging . | . . . . . Exploded . | . . . . . Melee . | . . . . . Uniques/NPCs Destroyed . | . . . . . Combat | -11 -10 -10 -10 -9 -------- Run | Yrd Mat Min Exi Min Hostile Shots Fired 89 | 7 42 1 . 39 Missed 21 | 1 11 1 . 8 Damage Taken 940 | 66 487 . . 387 Core 254 | 22 112 . . 120 Absorbed by Shields . | . . . . . Core Remaining (%) 91 | 91 . . . . Volleys Fired 73 | 5 46 1 . 21 Largest 2 | 2 2 2 . 2 Hottest 80 | 40 80 40 . 40 Shots Fired 133 | 10 92 2 . 29 Gun 133 | 10 92 2 . 29 Cannon . | . . . . . Launcher . | . . . . . Special . | . . . . . Kinetic 91 | 10 50 2 . 29 Thermal 42 | . 42 . . . Explosive . | . . . . . Electromagnetic . | . . . . . Robot Hit Streak 8 | 2 8 . . 5 Robot Miss Streak 5 | 2 4 . . 5 Penetration Max . | . . . . . Secondary Targets 2 | . 2 . . . Max Gunslinging Chain 1 | . 1 . . . Shots Hit Robots 67 | 5 50 . . 12 Core Hits 26 | 2 17 . . 7 Critical Kills . | . . . . . Critical Parts Destroyed 1 | . 1 . . . Critical Strikes 1 | . 1 . . . Destroy 1 | . 1 . . . Melee Attacks . | . . . . . Impact . | . . . . . Slashing . | . . . . . Piercing . | . . . . . Sneak Attacks . | . . . . . Combat Hostiles . | . . . . . Follow-up Attacks . | . . . . . Damage Inflicted 751 | 67 568 . . 116 Guns 748 | 67 565 . . 116 Cannons . | . . . . . Explosions . | . . . . . Melee . | . . . . . Ramming 3 | . 3 . . . Kinetic 455 | 67 272 . . 116 Thermal 293 | . 293 . . . Explosive . | . . . . . Electromagnetic . | . . . . . Impact . | . . . . . Slashing . | . . . . . Piercing . | . . . . . Highest Corruption 2 | . 2 2 2 2 Average Corruption 2 | . 2 2 2 2 Corruption Purged . | . . . . . Corruption Blocked . | . . . . . Effects 18 | . 12 2 3 1 Message Errors 3 | . 3 . . . Matter Fused 6 | . 3 1 2 . Heat Flow Errors 2 | . 1 . 1 . Energy Discharges 2 | . 2 . . . Parts Rejected 1 | . . . . 1 Data Loss (minor) 2 | . 1 1 . . Data Loss (major) 2 | . 2 . . . Overload Shots . | . . . . . Overflow Damage . | . . . . . Projectiles . | . . . . . Explosions . | . . . . . Melee . | . . . . . Knockbacks . | . . . . . Impact . | . . . . . Kinetic . | . . . . . Secondary . | . . . . . Self-Inflicted Damage . | . . . . . Shots . | . . . . . Rammed . | . . . . . Targets Rammed 1 | . 1 . . . Kicked 1 | . 1 . . . Crushed . | . . . . . Highest Temperature 285 | 12 285 . 84 22 Average Temperature 78 | 8 89 . 48 7 Received Heat Transfer 453 | 36 255 . . 162 Siege Activations . | . . . . . Robots Corrupted . | . . . . . Combat Hostiles . | . . . . . Parts Fried . | . . . . . Impact Corruptions . | . . . . . Robots Melted . | . . . . . Combat Hostiles . | . . . . . Parts Melted . | . . . . . Heat Transferred 675 | . 675 . . . Parts Sabotaged . | . . . . . Parts Stolen . | . . . . . Parts Stripped . | . . . . . Power Chain Reactions . | . . . . . Alert | -11 -10 -10 -10 -9 ------- Run | Yrd Mat Min Exi Min Peak Influence 122 | 20 122 15 . . Initial 13 | . 13 . . . Average 40 | 4 59 13 . . Maximum Alert Level . | . . . . . Low Security (%) 100 | 100 100 100 . 100 Level 1 . | . . . . . Level 2 . | . . . . . Level 3 . | . . . . . Level 4 . | . . . . . Level 5 . | . . . . . High Security . | . . . . . Max Security . | . . . . . Squads Dispatched 3 | . 3 . . . Investigation 1 | . 1 . . . Extermination . | . . . . . Reinforcement 2 | . 2 . . . Assault . | . . . . . Garrison . | . . . . . Intercept . | . . . . . Searches Triggered . | . . . . . Construction Impeded . | . . . . . Haulers Reinforced . | . . . . . Active Scanning Responses . | . . . . . Cargo Convoy Interrupts . | . . . . . Stealth | -11 -10 -10 -10 -9 --------- Run | Yrd Mat Min Exi Min Distress Signals 1 | . 1 . . . Communications Jammed . | . . . . . Distress Signals . | . . . . . Times Spotted 30 | 1 20 3 . 6 Peak Tracking Total 5 | 1 5 3 . 4 Tactical Retreats 2 | . 1 . . 1 Traps | -11 -10 -10 -10 -9 ------- Run | Yrd Mat Min Exi Min Traps Triggered 2 | . 2 . . . Indirectly . | . . . . . Trap Hack Attempts . | . . . . . Triggered . | . . . . . Disarmed . | . . . . . Reprogrammed . | . . . . . Reused . | . . . . . Traps Extracted . | . . . . . Installed . | . . . . . Triggered . | . . . . . Machines | -11 -10 -10 -10 -9 ---------- Run | Yrd Mat Min Exi Min Machines Disabled . | . . . . . Max in Single Turn . | . . . . . Machines Repaired . | . . . . . Machines Dismantled . | . . . . . Machines Sabotaged . | . . . . . Overloaded Fab Kills . | . . . . . Hacking | -11 -10 -10 -10 -9 --------- Run | Yrd Mat Min Exi Min Machines Accessed 6 | . 5 . 1 . Terminals 4 | . 4 . . . Fabricators . | . . . . . Repair Stations . | . . . . . Recycling Units 1 | . 1 . . . Scanalyzers . | . . . . . Garrison Access . | . . . . . Total Hacks 15 | . 14 . 1 . Successful 7 | . 6 . 1 . Failed 8 | . 8 . . . Catastrophic . | . . . . . Database Lockouts . | . . . . . Manual 1 | . . . 1 . Terminals 10 | . 10 . . . Fabricators . | . . . . . Repair Stations . | . . . . . Recycling Units 4 | . 4 . . . Scanalyzers . | . . . . . Garrison Access . | . . . . . Terminal Hacks 6 | . 5 . 1 . Record 1 | . 1 . . . Locate Traps 2 | . 2 . . . Dispatch Records 1 | . 1 . . . Zone Layout 1 | . 1 . . . Derelict Proto ID Bank 1 | . . . 1 . Fabricator Hacks . | . . . . . Repair Station Hacks . | . . . . . Recycling Unit Hacks 1 | . 1 . . . Report Inventory 1 | . 1 . . . Scanalyzer . | . . . . . Garrison Access Hacks . | . . . . . Unauthorized Hacks . | . . . . . Terminals . | . . . . . Fabricators . | . . . . . Repair Stations . | . . . . . Recycling Units . | . . . . . Scanalyzers . | . . . . . Garrison Access . | . . . . . Data Cores Recovered . | . . . . . Used . | . . . . . Hacking Detections 5 | . 5 . . . Full Trace Events . | . . . . . Feedback Events . | . . . . . Feedback Blocked . | . . . . . Robot Schematics Acquired . | . . . . . Robots Built . | . . . . . Authchips . | . . . . . Time . | . . . . . Total Robot Build Rating . | . . . . . Part Schematics Acquired . | . . . . . Parts Built . | . . . . . Authchips . | . . . . . Time . | . . . . . Total Part Build Rating . | . . . . . Parts Repaired . | . . . . . Time . | . . . . . Parts Recycled . | . . . . . Recycled Matter . | . . . . . Retrieved Matter . | . . . . . Retrieved Components . | . . . . . Parts Scanalyzed . | . . . . . Part Schematics Acquired . | . . . . . Parts Damaged . | . . . . . Bothacking | -11 -10 -10 -10 -9 ------------ Run | Yrd Mat Min Exi Min Used RIF Installer . | . . . . . Robots Hacked . | . . . . . Non-combat . | . . . . . Combat . | . . . . . Robot Hacks Applied . | . . . . . Relay Couplers Released . | . . . . . Fabnet Peak Effective % . | . . . . . Robots Rewired . | . . . . . Allies Hacked . | . . . . . Hacks Repelled . | . . . . . Allies | -11 -10 -10 -10 -9 -------- Run | Yrd Mat Min Exi Min Total Allies . | . . . . . Largest Group . | . . . . . Highest-Rated Group . | . . . . . Highest-Rated Ally . | . . . . . Total Orders . | . . . . . Ally Attacks . | . . . . . Total Damage . | . . . . . Kills . | . . . . . Allies Corrupted . | . . . . . Allies Melted . | . . . . . Intel | -11 -10 -10 -10 -9 ------- Run | Yrd Mat Min Exi Min Robot Analysis Total . | . . . . . Derelict Logs Recovered 2 | . . 1 . 1 Drone Launches . | . . . . . Drone Recoveries . | . . . . . Exploration | -11 -10 -10 -10 -9 ------------- Run | Yrd Mat Min Exi Min Turns Passed 1685 | 80 908 201 268 228 Spaces Moved 1339 | 72 663 155 244 205 Core 19 | 19 . . . . Treads . | . . . . . Legs 1131 | . 527 155 244 205 Wheels 189 | 53 136 . . . Hover . | . . . . . Flight . | . . . . . Fastest Speed 50 | 50 80 120 90 90 Average Speed 106 | 72 112 120 107 90 Slowest Speed 120 | 80 120 120 120 90 Overloaded Moves . | . . . . . Propulsion Burnouts . | . . . . . Robots Hopped . | . . . . . Cave-ins Triggered . | . . . . . Exploration Rate (%) 48 | 6 85 46 62 41 Regions Visited 4 Branch Regions 3 Pre-discovered Areas 2 | . . . . 2 Known Exits Taken 3 | . 1 1 1 . Unknown Exits Taken 1 | 1 . . . . Scrap Searched 2 | . . 1 . 1 Spaces Dug . | . . . . . Terrain Destroyed . | . . . . . Melee . | . . . . . Projectile . | . . . . . AOE . | . . . . . Terrain Rammed . | . . . . . Walls Destroyed . | . . . . . Machines Disabled . | . . . . . Actions | -11 -10 -10 -10 -9 --------- Run | Yrd Mat Min Exi Min Total 1475 | 90 740 168 251 226 Wait 10 | . 4 6 . . Move 1335 | 71 662 154 243 205 Hop . | . . . . . Pick Up 28 | 8 13 4 3 . Fast Attach . | . . . . . Attach 9 | 6 3 . . . Detach . | . . . . . Swap 9 | . 5 2 2 . Drop 10 | . 6 1 3 . Fire 73 | 5 46 1 . 21 Melee . | . . . . . Ram . | . . . . . Kick 1 | . 1 . . . Crush . | . . . . . Escape Stasis . | . . . . . Rewire . | . . . . . Trap . | . . . . . Miscellaneous . | . . . . . Route ------- -11/Scrapyard -10/Materials (discovered 4 exits: *Mat x3 / *Min) -10/Mines -10/Exiles (discovered 2 exits: *Min x2) -9/Mines (discovered 2 exits: *Mat x2) History --------- Turn | Location | Event 2 | -11/Scrapyard | Met Revision 17 48 | -11/Scrapyard | Discovered new exit (range 8) 81 | -11/Scrapyard | Entered Materials 140 | -10/Materials | Met 8R-AWN 156 | -10/Materials | Discovered new exit (range 16) 196 | -10/Materials | Identified exit to Materials 341 | -10/Materials | Discovered exit to Materials (range 10) 549 | -10/Materials | Build established: Scavenger-Mutant 582 | -10/Materials | Core integrity fell below 50% 628 | -10/Materials | Discovered exit to Materials (range 14) 965 | -10/Materials | Discovered new exit (range 16) 984 | -10/Materials | Identified exit to Mines 989 | -10/Materials | Entered Mines 991 | -10/Mines | Followed 8R-AWN into the Mines 1039 | -10/Mines | Assembled infested the area 1040 | -10/Mines | Learned location of 1 exit from Materials 1186 | -10/Mines | Discovered new exit (range 5) 1189 | -10/Mines | Identified exit to Exiles 1190 | -10/Mines | Entered Exiles 1210 | -10/Exiles | Discovered new exit (range 15) 1225 | -10/Exiles | Identified exit to Mines 1249 | -10/Exiles | Welcomed by 8R-AWN 1271 | -10/Exiles | Met EX-HEX 1306 | -10/Exiles | Met EX-BIN 1320 | -10/Exiles | Aligned with FarCom system 1321 | -10/Exiles | Given EX-Vault access code 1351 | -10/Exiles | Opened EX-Vault 1357 | -10/Exiles | Found Potential Leg 1361 | -10/Exiles | Found Potential Leg 1384 | -10/Exiles | Warned to stay clear of 0b10 Research branches 1409 | -10/Exiles | Met EX-DEC 1447 | -10/Exiles | Discovered exit to Mines (range 14) 1458 | -10/Exiles | Left Exiles lab with Potential Leg 1458 | -10/Exiles | Entered Mines 1459 | -9/Mines | Learned location of Storage (-7) 1461 | -9/Mines | Learned location of Zion (-7) 1466 | -9/Mines | Discovered new exit (range 9) 1472 | -9/Mines | Identified exit to Materials 1486 | -9/Mines | A weapon hastily lodged in a ceiling crevice suddenly fell to the ground 1507 | -9/Mines | Excavation squad dispatched 1507 | -9/Mines | A large section of the Mines collapsed 1650 | -9/Mines | Build established: Mutant 1658 | -9/Mines | Discovered exit to Materials (range 13) 1675 | -9/Mines | Core integrity fell below 20% 1686 | -9/Mines | Destroyed by G-34 Mercenary with Small Laser Last Messages --------------- as-86775 destroyed. Acquired 15 matter. T-07 Excavator is excavating. Searching scrap... Found Terrain Scan Processor. Found Sensor Array. Found Grenade Launcher. Found Spread Laser. Found 68 Matter. Acquired 39 matter. EXIT=FOUND: MATERIALS T-07 Excavator is excavating. System corrupted: Lgt. Assault Rifle rejected. as-86061 sneak attacks. T-07 Excavator system corrupted by crushing effect. T-07 Excavator knocked back. T-07 Excavator system terminally corrupted. Knocked back. as-86061 destroyed. Map ----- +----------------------------------------------------+ | ????# #??## #???#####??????## ### #### | | ????# #### ##### ##??????## ##?## !## | | ????## ] ##??????####???## %! | | ?????## """ ##?????????????## ] [ # | | ??????## """ ###### #??????????????#### # | | ???????#### """ #????# #????????????????## # | | ??????????# #???## #???????????????## # | | ?????????## #???# ##??????????????## | | ?????????# < ##### ##??????????????## | | ?????????# ##??????????????## | | ?????????# ##???????????????# | | ?????????## ####### ##??????########## ## | | ??????????#####?????# ##?????# ### | | ????????????????????# ##????# ##?? | | ????????????????????## #????# %###### #??? | | ?????????????????????## #????# #????# ##??# | | ??????????????????????## ###### #????# #?### | | ???????????????????????# # "#????# ### | | ???????????????????????# ####"" #????## ### | | ???????????????????????## ###"### ##????####?# | | ????????????????????????###?##"## #?????????# | | ?????????????????????????????# ## ##?????????# | | ????????????????????????????## *%#"##?????????# | | ???????????????????????????##[ %%;##?????????# | | ?????????????????### ###### |= ###??????????# | | ?????????????# % a ; @ % !%* ##??????????## | | ?????????????# g g #???????????# | | ?????????????# ###### ; ;g #???????????# | | ????????????????????## ####t ##??????????## | | ?????????????????????######??#" #???????????# | | ?????????????????????????????#[ #???????????# | | ?????????????????????????????#* ???????????## | | ?????????????????????????????#%###???????????##### | | ?????????????????????????????#%#?????????????????? | | ?????????????????????????????#= ?????????????????? | | ?????????????????????????????